[Event "Titled Tuesday Blitz June 20 Early 2023"]
[White "Danielyan, Vahe"]
[Black "Mamedov, Edgar"]
[WhiteFideId "13304828"]
[BlackFideId "13739980"]
[WhiteElo "2423"]
[BlackElo "2317"]
[Result "0-1"]
[Round "10"]
[TimeControl "180+2"]
[Date "2023.06.20"]
[WhiteClock "0:01:09"]
[BlackClock "0:00:57"]
[Board "60"]

1. e4 {[%clk 0:02:34]}  c5 {[%clk 0:02:58]} 2. Nc3 {[%clk 0:02:33]}  e6 {[%clk 0:02:57]} 3. Nf3 {[%clk 0:02:32]}  Nc6 {[%clk 0:02:56]} 4. Bb5 {[%clk 0:02:31]}  Nd4 {[%clk 0:02:54]} 5. O-O {[%clk 0:02:30]}  a6 {[%clk 0:02:45]} 6. Bd3 {[%clk 0:02:29]}  Nxf3+ {[%clk 0:02:28]} 7. Qxf3 {[%clk 0:02:28]}  Bd6 {[%clk 0:02:28]} 8. b3 {[%clk 0:02:20]}  Ne7 {[%clk 0:02:20]} 9. Bb2 {[%clk 0:02:17]}  Be5 {[%clk 0:02:12]} 10. Qh5 {[%clk 0:01:59]}  Ng6 {[%clk 0:02:09]} 11. Na4 {[%clk 0:01:52]}  Qc7 {[%clk 0:01:37]} 12. Bxe5 {[%clk 0:01:46]}  Nxe5 {[%clk 0:01:35]} 13. f4 {[%clk 0:01:44]}  Nxd3 {[%clk 0:01:33]} 14. cxd3 {[%clk 0:01:45]}  b5 {[%clk 0:01:31]} 15. Qxc5 {[%clk 0:01:32]}  Qxc5+ {[%clk 0:01:26]} 16. Nxc5 {[%clk 0:01:33]}  d6 {[%clk 0:01:26]} 17. d4 {[%clk 0:01:26]}  dxc5 {[%clk 0:01:25]} 18. dxc5 {[%clk 0:01:26]}  Bb7 {[%clk 0:01:24]} 19. Rfe1 {[%clk 0:01:23]}  O-O-O {[%clk 0:01:20]} 20. Re2 {[%clk 0:01:18]}  Rd4 {[%clk 0:01:17]} 21. Rae1 {[%clk 0:01:19]}  Rhd8 {[%clk 0:01:15]} 22. f5 {[%clk 0:01:19]}  Rxd2 {[%clk 0:01:10]} 23. f6 {[%clk 0:01:20]}  gxf6 {[%clk 0:01:06]} 24. Rxd2 {[%clk 0:01:18]}  Rxd2 {[%clk 0:01:03]} 25. Rf1 {[%clk 0:01:18]}  Bxe4 {[%clk 0:01:02]} 26. Rxf6 {[%clk 0:01:19]}  Rxg2+ {[%clk 0:00:58]} 27. Kf1 {[%clk 0:01:20]}  Rg7 {[%clk 0:00:57]} 28. Rxf7 {[%clk 0:01:09]}  Rxf7+ {[%clk 0:00:57]} 0-1


[Site "https://www.chess.com"]

[Event "Titled Tuesday Blitz June 20 Early 2023"]
[White "Florescu, Codrut-Constantin"]
[Black "Zaragatski, Ilja"]
[WhiteFideId "1202200"]
[BlackFideId "4655192"]
[WhiteElo "2191"]
[BlackElo "2460"]
[Result "0-1"]
[Round "10"]
[TimeControl "180+2"]
[Date "2023.06.20"]
[WhiteClock "0:00:50"]
[BlackClock "0:00:47"]
[Board "62"]

1. e4 {[%clk 0:03:00]}  d6 {[%clk 0:02:58]} 2. d4 {[%clk 0:03:00]}  Nf6 {[%clk 0:02:57]} 3. f3 {[%clk 0:03:00]}  d5 {[%clk 0:02:55]} 4. e5 {[%clk 0:03:00]}  Nfd7 {[%clk 0:02:55]} 5. Nc3 {[%clk 0:02:59]}  Nb6 {[%clk 0:02:38]} 6. f4 {[%clk 0:02:57]}  Bf5 {[%clk 0:02:36]} 7. Bd3 {[%clk 0:02:56]}  Bxd3 {[%clk 0:02:34]} 8. Qxd3 {[%clk 0:02:57]}  e6 {[%clk 0:02:35]} 9. Nf3 {[%clk 0:02:54]}  c5 {[%clk 0:02:31]} 10. dxc5 {[%clk 0:02:50]}  Bxc5 {[%clk 0:02:30]} 11. f5 {[%clk 0:02:50]}  exf5 {[%clk 0:02:20]} 12. Qxf5 {[%clk 0:02:50]}  Qd7 {[%clk 0:02:18]} 13. Qg5 {[%clk 0:02:48]}  O-O {[%clk 0:02:14]} 14. Bf4 {[%clk 0:02:45]}  Bb4 {[%clk 0:02:04]} 15. O-O {[%clk 0:02:43]}  Bxc3 {[%clk 0:02:01]} 16. bxc3 {[%clk 0:02:44]}  Nc6 {[%clk 0:02:02]} 17. Nd4 {[%clk 0:02:43]}  Nxd4 {[%clk 0:01:54]} 18. cxd4 {[%clk 0:02:44]}  Rac8 {[%clk 0:01:53]} 19. Rf2 {[%clk 0:02:44]}  Qe6 {[%clk 0:01:46]} 20. Raf1 {[%clk 0:02:42]}  Qg6 {[%clk 0:01:41]} 21. Qxg6 {[%clk 0:02:30]}  hxg6 {[%clk 0:01:42]} 22. Bg5 {[%clk 0:02:30]}  Rc7 {[%clk 0:01:32]} 23. h4 {[%clk 0:02:23]}  Na4 {[%clk 0:01:23]} 24. Bc1 {[%clk 0:02:18]}  Nc3 {[%clk 0:01:21]} 25. Ba3 {[%clk 0:02:16]}  Re8 {[%clk 0:01:20]} 26. Bd6 {[%clk 0:02:15]}  Rd7 {[%clk 0:01:18]} 27. Rf3 {[%clk 0:02:07]}  Ne4 {[%clk 0:01:16]} 28. Bb4 {[%clk 0:02:04]}  Rc8 {[%clk 0:01:15]} 29. g4 {[%clk 0:01:29]}  Rxc2 {[%clk 0:01:14]} 30. h5 {[%clk 0:01:23]}  gxh5 {[%clk 0:01:12]} 31. gxh5 {[%clk 0:01:24]}  Rxa2 {[%clk 0:01:10]} 32. e6 {[%clk 0:01:19]}  fxe6 {[%clk 0:01:09]} 33. Rf8+ {[%clk 0:01:20]}  Kh7 {[%clk 0:01:10]} 34. Re8 {[%clk 0:01:19]}  Ng3 {[%clk 0:00:59]} 35. Rff8 {[%clk 0:01:18]}  Nxh5 {[%clk 0:00:57]} 36. Rh8+ {[%clk 0:01:18]}  Kg6 {[%clk 0:00:57]} 37. Rxe6+ {[%clk 0:01:18]}  Nf6 {[%clk 0:00:56]} 38. Re3 {[%clk 0:01:07]}  Ne4 {[%clk 0:00:50]} 39. Rh4 {[%clk 0:00:50]}  Rc7 {[%clk 0:00:47]} 0-1


[Site "https://www.chess.com"]

[Event "Titled Tuesday Blitz June 20 Early 2023"]
[White "Berezin, Viktor"]
[Black "Ashraf, Artin"]
[WhiteFideId "14107872"]
[BlackFideId "22514805"]
[WhiteElo "2310"]
[BlackElo "2224"]
[Result "0-1"]
[Round "10"]
[TimeControl "180+2"]
[Date "2023.06.20"]
[WhiteClock "0:00:00"]
[BlackClock "0:00:53"]
[Board "63"]

1. d4 {[%clk 0:02:55]}  Nf6 {[%clk 0:02:57]} 2. Nf3 {[%clk 0:02:54]}  d5 {[%clk 0:02:55]} 3. c4 {[%clk 0:02:54]}  e6 {[%clk 0:02:55]} 4. g3 {[%clk 0:02:53]}  Bb4+ {[%clk 0:02:55]} 5. Nbd2 {[%clk 0:02:53]}  O-O {[%clk 0:02:47]} 6. Bg2 {[%clk 0:02:53]}  dxc4 {[%clk 0:02:46]} 7. Qc2 {[%clk 0:02:52]}  b5 {[%clk 0:02:42]} 8. O-O {[%clk 0:02:50]}  Bb7 {[%clk 0:02:40]} 9. a4 {[%clk 0:02:14]}  a6 {[%clk 0:02:34]} 10. Re1 {[%clk 0:01:48]}  Bxd2 {[%clk 0:02:16]} 11. Bxd2 {[%clk 0:01:45]}  Be4 {[%clk 0:02:15]} 12. Qc1 {[%clk 0:01:43]}  Nc6 {[%clk 0:02:13]} 13. e3 {[%clk 0:01:36]}  Qd5 {[%clk 0:02:08]} 14. Nh4 {[%clk 0:01:33]}  Bxg2 {[%clk 0:02:06]} 15. Nxg2 {[%clk 0:01:34]}  e5 {[%clk 0:02:06]} 16. Bc3 {[%clk 0:01:00]}  Ne4 {[%clk 0:01:50]} 17. dxe5 {[%clk 0:00:47]}  Ng5 {[%clk 0:01:46]} 18. e4 {[%clk 0:00:32]}  Nh3+ {[%clk 0:01:42]} 19. Kf1 {[%clk 0:00:30]}  Qd3+ {[%clk 0:01:41]} 20. Re2 {[%clk 0:00:30]}  Ng1 {[%clk 0:01:40]} 21. Kxg1 {[%clk 0:00:14]}  Qxe2 {[%clk 0:01:38]} 22. Qg5 {[%clk 0:00:11]}  Qxe4 {[%clk 0:01:30]} 23. Nf4 {[%clk 0:00:11]}  h6 {[%clk 0:01:20]} 24. Qg4 {[%clk 0:00:09]}  Nxe5 {[%clk 0:01:18]} 25. Bxe5 {[%clk 0:00:08]}  Qxe5 {[%clk 0:01:19]} 26. Nh5 {[%clk 0:00:06]}  Qxb2 {[%clk 0:01:13]} 27. Re1 {[%clk 0:00:05]}  Rae8 {[%clk 0:01:10]} 28. Rd1 {[%clk 0:00:03]}  g6 {[%clk 0:01:02]} 29. Rd4 {[%clk 0:00:02]}  Qc1+ {[%clk 0:00:54]} 30. Kg2 {[%clk 0:00:02]}  Qg5 {[%clk 0:00:55]} 31. Qf3 {[%clk 0:00:00]}  Qxh5 {[%clk 0:00:53]} 0-1


[Site "https://www.chess.com"]

[Event "Titled Tuesday Blitz June 20 Early 2023"]
[White "Vaibhav Jayant Raut"]
[Black "Bruedigam, Martin"]
[WhiteFideId "5089034"]
[BlackFideId "24608033"]
[WhiteElo "2156"]
[BlackElo "2331"]
[Result "1/2-1/2"]
[Round "10"]
[TimeControl "180+2"]
[Date "2023.06.20"]
[WhiteClock "0:01:04"]
[BlackClock "0:00:22"]
[Board "64"]

1. Nf3 {[%clk 0:03:00]}  d5 {[%clk 0:02:59]} 2. b3 {[%clk 0:02:59]}  c5 {[%clk 0:02:57]} 3. Bb2 {[%clk 0:02:58]}  Nc6 {[%clk 0:02:57]} 4. e3 {[%clk 0:02:58]}  a6 {[%clk 0:02:56]} 5. d4 {[%clk 0:02:58]}  cxd4 {[%clk 0:02:54]} 6. Nxd4 {[%clk 0:02:58]}  Nxd4 {[%clk 0:02:51]} 7. Qxd4 {[%clk 0:02:57]}  Nf6 {[%clk 0:02:50]} 8. Nd2 {[%clk 0:02:57]}  Bf5 {[%clk 0:02:49]} 9. c4 {[%clk 0:02:57]}  dxc4 {[%clk 0:02:49]} 10. Nxc4 {[%clk 0:02:41]}  e6 {[%clk 0:02:47]} 11. a3 {[%clk 0:02:31]}  Qxd4 {[%clk 0:02:41]} 12. Bxd4 {[%clk 0:02:31]}  Nd7 {[%clk 0:02:30]} 13. Be2 {[%clk 0:02:29]}  f6 {[%clk 0:02:28]} 14. O-O {[%clk 0:02:25]}  e5 {[%clk 0:02:28]} 15. Bc3 {[%clk 0:02:24]}  b5 {[%clk 0:02:16]} 16. Na5 {[%clk 0:02:22]}  Bc5 {[%clk 0:01:59]} 17. Bb4 {[%clk 0:02:21]}  Rc8 {[%clk 0:01:50]} 18. Nb7 {[%clk 0:02:17]}  Be7 {[%clk 0:01:33]} 19. Nd6+ {[%clk 0:01:56]}  Bxd6 {[%clk 0:01:32]} 20. Bxd6 {[%clk 0:01:57]}  Kf7 {[%clk 0:01:29]} 21. a4 {[%clk 0:01:53]}  Rc6 {[%clk 0:01:25]} 22. Bb4 {[%clk 0:01:52]}  bxa4 {[%clk 0:01:24]} 23. Rxa4 {[%clk 0:01:52]}  Rb8 {[%clk 0:01:21]} 24. h3 {[%clk 0:01:43]}  Be6 {[%clk 0:01:20]} 25. Be1 {[%clk 0:01:37]}  Bxb3 {[%clk 0:01:14]} 26. Rxa6 {[%clk 0:01:37]}  Rxa6 {[%clk 0:01:13]} 27. Bxa6 {[%clk 0:01:38]}  h5 {[%clk 0:00:41]} 28. Be2 {[%clk 0:01:35]}  h4 {[%clk 0:00:40]} 29. f4 {[%clk 0:01:34]}  exf4 {[%clk 0:00:41]} 30. exf4 {[%clk 0:01:35]}  Re8 {[%clk 0:00:37]} 31. Bg4 {[%clk 0:01:32]}  Be6 {[%clk 0:00:36]} 32. Bxe6+ {[%clk 0:01:29]}  Rxe6 {[%clk 0:00:35]} 33. Bxh4 {[%clk 0:01:30]}  f5 {[%clk 0:00:34]} 34. Rc1 {[%clk 0:01:28]}  Kg6 {[%clk 0:00:31]} 35. Rc7 {[%clk 0:01:24]}  Rd6 {[%clk 0:00:31]} 36. Bg5 {[%clk 0:01:21]}  Rd2 {[%clk 0:00:28]} 37. g4 {[%clk 0:01:15]}  fxg4 {[%clk 0:00:25]} 38. hxg4 {[%clk 0:01:15]}  Nf6 {[%clk 0:00:24]} 39. Bxf6 {[%clk 0:00:58]}  gxf6 {[%clk 0:00:20]} 40. Rc4 {[%clk 0:00:58]}  Rb2 {[%clk 0:00:18]} 41. Kf1 {[%clk 0:00:59]}  Ra2 {[%clk 0:00:18]} 42. Re4 {[%clk 0:00:59]}  Rb2 {[%clk 0:00:19]} 43. Re2 {[%clk 0:00:58]}  Rb4 {[%clk 0:00:18]} 44. Rf2 {[%clk 0:00:59]}  Rb3 {[%clk 0:00:15]} 45. Kg2 {[%clk 0:00:58]}  Ra3 {[%clk 0:00:16]} 46. Rf3 {[%clk 0:00:59]}  Ra1 {[%clk 0:00:16]} 47. Kg3 {[%clk 0:00:59]}  Rg1+ {[%clk 0:00:16]} 48. Kf2 {[%clk 0:00:59]}  Ra1 {[%clk 0:00:17]} 49. Rb3 {[%clk 0:00:59]}  Kg7 {[%clk 0:00:15]} 50. Kf3 {[%clk 0:00:57]}  Re1 {[%clk 0:00:14]} 51. Rb8 {[%clk 0:00:56]}  Kg6 {[%clk 0:00:13]} 52. Rg8+ {[%clk 0:00:55]}  Kf7 {[%clk 0:00:13]} 53. Rh8 {[%clk 0:00:56]}  Kg7 {[%clk 0:00:13]} 54. Rh2 {[%clk 0:00:55]}  Kg6 {[%clk 0:00:13]} 55. Rf2 {[%clk 0:00:51]}  Rg1 {[%clk 0:00:13]} 56. Rg2 {[%clk 0:00:51]}  Re1 {[%clk 0:00:13]} 57. g5 {[%clk 0:00:49]}  fxg5 {[%clk 0:00:13]} 58. Rxg5+ {[%clk 0:00:50]}  Kf6 {[%clk 0:00:13]} 59. Ra5 {[%clk 0:00:51]}  Rf1+ {[%clk 0:00:12]} 60. Ke3 {[%clk 0:00:51]}  Re1+ {[%clk 0:00:12]} 61. Kf2 {[%clk 0:00:51]}  Rb1 {[%clk 0:00:13]} 62. Kg3 {[%clk 0:00:52]}  Rg1+ {[%clk 0:00:12]} 63. Kf3 {[%clk 0:00:52]}  Rf1+ {[%clk 0:00:12]} 64. Ke3 {[%clk 0:00:53]}  Re1+ {[%clk 0:00:12]} 65. Kd4 {[%clk 0:00:53]}  Kf7 {[%clk 0:00:11]} 66. Re5 {[%clk 0:00:52]}  Rd1+ {[%clk 0:00:12]} 67. Ke4 {[%clk 0:00:52]}  Kf6 {[%clk 0:00:13]} 68. Rf5+ {[%clk 0:00:53]}  Ke6 {[%clk 0:00:12]} 69. Rh5 {[%clk 0:00:50]}  Re1+ {[%clk 0:00:13]} 70. Kf3 {[%clk 0:00:51]}  Kf6 {[%clk 0:00:13]} 71. Rh6+ {[%clk 0:00:50]}  Kf5 {[%clk 0:00:13]} 72. Rh5+ {[%clk 0:00:50]}  Kf6 {[%clk 0:00:14]} 73. Rh2 {[%clk 0:00:50]}  Rf1+ {[%clk 0:00:13]} 74. Ke3 {[%clk 0:00:50]}  Re1+ {[%clk 0:00:13]} 75. Re2 {[%clk 0:00:50]}  Rd1 {[%clk 0:00:12]} 76. Kf3 {[%clk 0:00:50]}  Rf1+ {[%clk 0:00:13]} 77. Rf2 {[%clk 0:00:49]}  Rxf2+ {[%clk 0:00:13]} 78. Kxf2 {[%clk 0:00:49]}  Kf5 {[%clk 0:00:14]} 79. Ke3 {[%clk 0:00:50]}  Kf6 {[%clk 0:00:14]} 80. Ke4 {[%clk 0:00:51]}  Ke6 {[%clk 0:00:14]} 81. Kf3 {[%clk 0:00:51]}  Kf5 {[%clk 0:00:15]} 82. Kg3 {[%clk 0:00:51]}  Kf6 {[%clk 0:00:15]} 83. Kg4 {[%clk 0:00:52]}  Kg6 {[%clk 0:00:15]} 84. f5+ {[%clk 0:00:53]}  Kf6 {[%clk 0:00:16]} 85. Kf4 {[%clk 0:00:53]}  Kf7 {[%clk 0:00:16]} 86. Kg5 {[%clk 0:00:54]}  Kg7 {[%clk 0:00:17]} 87. Kh5 {[%clk 0:00:54]}  Kf6 {[%clk 0:00:17]} 88. Kg4 {[%clk 0:00:55]}  Kf7 {[%clk 0:00:17]} 89. Kf4 {[%clk 0:00:56]}  Kf6 {[%clk 0:00:18]} 90. Ke4 {[%clk 0:00:57]}  Kf7 {[%clk 0:00:18]} 91. Kd4 {[%clk 0:00:57]}  Kf6 {[%clk 0:00:18]} 92. Ke4 {[%clk 0:00:58]}  Kf7 {[%clk 0:00:19]} 93. Ke5 {[%clk 0:00:59]}  Ke7 {[%clk 0:00:19]} 94. f6+ {[%clk 0:00:59]}  Kf7 {[%clk 0:00:20]} 95. Kf5 {[%clk 0:00:59]}  Kf8 {[%clk 0:00:20]} 96. Kg5 {[%clk 0:01:00]}  Kf7 {[%clk 0:00:20]} 97. Kf5 {[%clk 0:01:00]}  Kf8 {[%clk 0:00:21]} 98. Kg6 {[%clk 0:01:00]}  Kg8 {[%clk 0:00:21]} 99. Kh6 {[%clk 0:01:00]}  Kf7 {[%clk 0:00:21]} 100. Kg5 {[%clk 0:01:01]}  Kf8 {[%clk 0:00:22]} 101. Kg6 {[%clk 0:01:02]}  Kg8 {[%clk 0:00:22]} 102. f7+ {[%clk 0:01:03]}  Kf8 {[%clk 0:00:22]} 103. Kf6 {[%clk 0:01:04]} 1/2-1/2


[Site "https://www.chess.com"]

[Event "Titled Tuesday Blitz June 20 Early 2023"]
[White "Tokhirjonova, Gulrukhbegim"]
[Black "Druska, Juraj"]
[WhiteFideId "14203626"]
[BlackFideId "14915650"]
[WhiteElo "2265"]
[BlackElo "2415"]
[Result "0-1"]
[Round "10"]
[TimeControl "180+2"]
[Date "2023.06.20"]
[WhiteClock "0:00:38"]
[BlackClock "0:00:37"]
[Board "65"]

1. e4 {[%clk 0:02:54]}  d6 {[%clk 0:02:58]} 2. d4 {[%clk 0:02:53]}  Nf6 {[%clk 0:02:56]} 3. Nc3 {[%clk 0:02:52]}  Nbd7 {[%clk 0:02:56]} 4. Bd2 {[%clk 0:02:52]}  e5 {[%clk 0:02:56]} 5. Nf3 {[%clk 0:02:47]}  g6 {[%clk 0:02:51]} 6. Qc1 {[%clk 0:02:46]}  Bg7 {[%clk 0:02:51]} 7. Bh6 {[%clk 0:02:45]}  O-O {[%clk 0:02:51]} 8. Bxg7 {[%clk 0:02:45]}  Kxg7 {[%clk 0:02:51]} 9. h4 {[%clk 0:02:45]}  h5 {[%clk 0:02:50]} 10. Bd3 {[%clk 0:02:44]}  c6 {[%clk 0:02:46]} 11. Qd2 {[%clk 0:02:39]}  Re8 {[%clk 0:02:41]} 12. O-O-O {[%clk 0:02:38]}  Qe7 {[%clk 0:02:41]} 13. Rhe1 {[%clk 0:02:36]}  Nf8 {[%clk 0:02:40]} 14. Ne2 {[%clk 0:02:23]}  Bg4 {[%clk 0:02:36]} 15. Qc3 {[%clk 0:02:20]}  N6d7 {[%clk 0:02:13]} 16. Ng3 {[%clk 0:02:13]}  Ne6 {[%clk 0:01:57]} 17. dxe5 {[%clk 0:02:12]}  dxe5 {[%clk 0:01:57]} 18. Nxe5 {[%clk 0:02:11]}  Nxe5 {[%clk 0:01:58]} 19. Qxe5+ {[%clk 0:02:11]}  f6 {[%clk 0:01:58]} 20. Qc3 {[%clk 0:02:10]}  Bxd1 {[%clk 0:01:57]} 21. Rxd1 {[%clk 0:02:07]}  Rad8 {[%clk 0:01:56]} 22. Re1 {[%clk 0:02:04]}  Qc5 {[%clk 0:01:55]} 23. Qd2 {[%clk 0:02:04]}  Qe5 {[%clk 0:01:40]} 24. Qe3 {[%clk 0:01:53]}  Qf4 {[%clk 0:01:34]} 25. e5 {[%clk 0:01:43]}  fxe5 {[%clk 0:01:28]} 26. Ne4 {[%clk 0:01:36]}  Qxe3+ {[%clk 0:01:27]} 27. fxe3 {[%clk 0:01:36]}  b6 {[%clk 0:01:23]} 28. Bc4 {[%clk 0:01:34]}  Nc5 {[%clk 0:01:20]} 29. Ng5 {[%clk 0:01:33]}  b5 {[%clk 0:01:20]} 30. Be2 {[%clk 0:01:31]}  Ne6 {[%clk 0:01:08]} 31. Ne4 {[%clk 0:01:29]}  Rf8 {[%clk 0:01:08]} 32. Bf3 {[%clk 0:01:28]}  Rf7 {[%clk 0:01:03]} 33. b4 {[%clk 0:01:28]}  a5 {[%clk 0:01:02]} 34. bxa5 {[%clk 0:01:14]}  Ra7 {[%clk 0:01:01]} 35. Nd2 {[%clk 0:01:04]}  Rxa5 {[%clk 0:00:55]} 36. Bxc6 {[%clk 0:01:01]}  Rxa2 {[%clk 0:00:55]} 37. Kb1 {[%clk 0:01:01]}  Rxd2 {[%clk 0:00:52]} 38. Kxa2 {[%clk 0:00:57]}  Rxc2+ {[%clk 0:00:52]} 39. Kb3 {[%clk 0:00:58]}  Rxc6 {[%clk 0:00:52]} 40. Kb4 {[%clk 0:00:58]}  Rc2 {[%clk 0:00:50]} 41. g3 {[%clk 0:00:55]}  Rg2 {[%clk 0:00:49]} 42. Kxb5 {[%clk 0:00:56]}  Rxg3 {[%clk 0:00:49]} 43. Kc6 {[%clk 0:00:56]}  Nf8 {[%clk 0:00:48]} 44. Kd5 {[%clk 0:00:56]}  Rg4 {[%clk 0:00:47]} 45. Kxe5 {[%clk 0:00:55]}  Rxh4 {[%clk 0:00:48]} 46. e4 {[%clk 0:00:56]}  Nd7+ {[%clk 0:00:48]} 47. Kd6 {[%clk 0:00:55]}  Nf8 {[%clk 0:00:44]} 48. e5 {[%clk 0:00:55]}  Rd4+ {[%clk 0:00:44]} 49. Ke7 {[%clk 0:00:55]}  Rd7+ {[%clk 0:00:43]} 50. Ke8 {[%clk 0:00:55]}  Rd4 {[%clk 0:00:42]} 51. Rf1 {[%clk 0:00:49]}  Re4 {[%clk 0:00:36]} 52. Rf7+ {[%clk 0:00:47]}  Kh6 {[%clk 0:00:36]} 53. Re7 {[%clk 0:00:44]}  Nh7 {[%clk 0:00:36]} 54. e6 {[%clk 0:00:41]}  Ng5 {[%clk 0:00:36]} 55. Kd7 {[%clk 0:00:40]}  Rxe6 {[%clk 0:00:36]} 56. Rxe6 {[%clk 0:00:38]}  Nxe6 {[%clk 0:00:37]} 57. Kxe6 {[%clk 0:00:38]}  h4 {[%clk 0:00:37]} 0-1


[Site "https://www.chess.com"]

[Event "Titled Tuesday Blitz June 20 Early 2023"]
[White "Goffredo_Fofi"]
[Black "Fiorito, Joaquin"]
[BlackFideId "180173"]
[WhiteElo "2516"]
[BlackElo "2199"]
[Result "0-1"]
[Round "10"]
[TimeControl "180+2"]
[Date "2023.06.20"]
[WhiteClock "0:00:00"]
[BlackClock "0:00:42"]
[Board "67"]

1. d4 {[%clk 0:03:00]}  Nf6 {[%clk 0:02:59]} 2. Nf3 {[%clk 0:02:59]}  d5 {[%clk 0:03:00]} 3. Bf4 {[%clk 0:02:58]}  c5 {[%clk 0:03:00]} 4. e3 {[%clk 0:02:59]}  Nc6 {[%clk 0:03:00]} 5. Nbd2 {[%clk 0:02:59]}  cxd4 {[%clk 0:03:00]} 6. exd4 {[%clk 0:02:59]}  a6 {[%clk 0:03:01]} 7. c3 {[%clk 0:02:53]}  Bf5 {[%clk 0:03:00]} 8. a4 {[%clk 0:02:51]}  e6 {[%clk 0:02:58]} 9. Be2 {[%clk 0:02:33]}  h6 {[%clk 0:02:55]} 10. h3 {[%clk 0:02:33]}  Bd6 {[%clk 0:02:55]} 11. Bxd6 {[%clk 0:02:32]}  Qxd6 {[%clk 0:02:56]} 12. O-O {[%clk 0:02:33]}  O-O {[%clk 0:02:56]} 13. Re1 {[%clk 0:02:33]}  Ne4 {[%clk 0:02:48]} 14. Nxe4 {[%clk 0:02:30]}  Bxe4 {[%clk 0:02:44]} 15. Bd3 {[%clk 0:02:24]}  Bxf3 {[%clk 0:02:43]} 16. Qxf3 {[%clk 0:02:24]}  Rab8 {[%clk 0:02:40]} 17. Bc2 {[%clk 0:01:56]}  b5 {[%clk 0:02:37]} 18. axb5 {[%clk 0:01:57]}  axb5 {[%clk 0:02:38]} 19. Qd3 {[%clk 0:01:58]}  g6 {[%clk 0:02:35]} 20. Ra6 {[%clk 0:01:58]}  Qd7 {[%clk 0:02:29]} 21. Qe3 {[%clk 0:01:58]}  Kg7 {[%clk 0:02:26]} 22. h4 {[%clk 0:01:57]}  Ra8 {[%clk 0:02:16]} 23. Rxa8 {[%clk 0:01:50]}  Rxa8 {[%clk 0:02:17]} 24. h5 {[%clk 0:01:51]}  g5 {[%clk 0:02:17]} 25. Qd3 {[%clk 0:01:50]}  Rh8 {[%clk 0:02:11]} 26. Qxb5 {[%clk 0:01:46]}  Qc7 {[%clk 0:02:10]} 27. Ra1 {[%clk 0:01:34]}  Nxd4 {[%clk 0:02:08]} 28. Qd3 {[%clk 0:01:24]}  Nf5 {[%clk 0:02:01]} 29. g3 {[%clk 0:01:19]}  Qb6 {[%clk 0:01:56]} 30. b4 {[%clk 0:01:14]}  Qd6 {[%clk 0:01:31]} 31. Ra7 {[%clk 0:01:02]}  Qe5 {[%clk 0:01:27]} 32. Qf3 {[%clk 0:00:53]}  Rc8 {[%clk 0:01:23]} 33. Bxf5 {[%clk 0:00:40]}  exf5 {[%clk 0:01:20]} 34. Ra3 {[%clk 0:00:38]}  Rc4 {[%clk 0:01:12]} 35. Qe3 {[%clk 0:00:34]}  Re4 {[%clk 0:01:10]} 36. Qd3 {[%clk 0:00:29]}  f4 {[%clk 0:01:10]} 37. Ra5 {[%clk 0:00:19]}  fxg3 {[%clk 0:01:09]} 38. Rxd5 {[%clk 0:00:13]}  gxf2+ {[%clk 0:01:08]} 39. Kxf2 {[%clk 0:00:14]}  Rf4+ {[%clk 0:00:49]} 40. Kg2 {[%clk 0:00:12]}  Qe1 {[%clk 0:00:45]} 41. Qd2 {[%clk 0:00:04]}  Qe4+ {[%clk 0:00:43]} 42. Kg1 {[%clk 0:00:02]}  Qf3 {[%clk 0:00:41]} 43. Qg2 {[%clk 0:00:00]}  Rg4 {[%clk 0:00:42]} 0-1


[Site "https://www.chess.com"]

[Event "Titled Tuesday Blitz June 20 Early 2023"]
[White "Topalov, Aleksandar"]
[Black "Bodnaruk, Anastasia"]
[WhiteFideId "925659"]
[BlackFideId "4181751"]
[WhiteElo "2151"]
[BlackElo "2304"]
[Result "0-1"]
[Round "10"]
[TimeControl "180+2"]
[Date "2023.06.20"]
[WhiteClock "0:01:26"]
[BlackClock "0:01:08"]
[Board "75"]

1. b3 {[%clk 0:03:00]}  e5 {[%clk 0:02:59]} 2. Bb2 {[%clk 0:03:01]}  d6 {[%clk 0:02:59]} 3. d4 {[%clk 0:03:00]}  e4 {[%clk 0:02:59]} 4. d5 {[%clk 0:03:01]}  f5 {[%clk 0:02:58]} 5. e3 {[%clk 0:03:01]}  Nf6 {[%clk 0:02:58]} 6. Ne2 {[%clk 0:03:01]}  g6 {[%clk 0:02:54]} 7. Nf4 {[%clk 0:03:01]}  Bg7 {[%clk 0:02:54]} 8. h4 {[%clk 0:02:59]}  O-O {[%clk 0:02:50]} 9. Nc3 {[%clk 0:02:59]}  Ng4 {[%clk 0:02:43]} 10. Be2 {[%clk 0:02:53]}  Qe7 {[%clk 0:02:39]} 11. Qd2 {[%clk 0:02:50]}  Na6 {[%clk 0:02:37]} 12. Bxg4 {[%clk 0:02:44]}  fxg4 {[%clk 0:02:37]} 13. O-O-O {[%clk 0:02:42]}  Nc5 {[%clk 0:02:34]} 14. Kb1 {[%clk 0:02:40]}  Bd7 {[%clk 0:02:33]} 15. h5 {[%clk 0:02:27]}  g5 {[%clk 0:02:26]} 16. h6 {[%clk 0:02:27]}  Be5 {[%clk 0:02:12]} 17. Nh5 {[%clk 0:02:19]}  a5 {[%clk 0:02:11]} 18. Ng3 {[%clk 0:02:05]}  Bf6 {[%clk 0:02:00]} 19. a4 {[%clk 0:01:58]}  Qe5 {[%clk 0:01:45]} 20. Nh5 {[%clk 0:01:52]}  Bh8 {[%clk 0:01:44]} 21. Ng7 {[%clk 0:01:52]}  Qe7 {[%clk 0:01:38]} 22. Rdf1 {[%clk 0:01:44]}  Rab8 {[%clk 0:01:15]} 23. Qd4 {[%clk 0:01:40]}  b5 {[%clk 0:01:09]} 24. axb5 {[%clk 0:01:37]}  Bxb5 {[%clk 0:01:09]} 25. Nxb5 {[%clk 0:01:36]}  Rxb5 {[%clk 0:01:09]} 26. Qa4 {[%clk 0:01:26]}  Nxa4 {[%clk 0:01:08]} 0-1


[Site "https://www.chess.com"]

[Event "Titled Tuesday Blitz June 20 Early 2023"]
[White "Omariev, Maksim"]
[Black "Veiga, Jose Francisco R P Neves"]
[WhiteFideId "4193423"]
[BlackFideId "1930087"]
[WhiteElo "2394"]
[BlackElo "2319"]
[Result "0-1"]
[Round "10"]
[TimeControl "180+2"]
[Date "2023.06.20"]
[WhiteClock "0:00:00"]
[BlackClock "0:01:45"]
[Board "77"]

1. e4 {[%clk 0:03:00]}  Nc6 {[%clk 0:03:00]} 2. Nf3 {[%clk 0:02:59]}  d6 {[%clk 0:03:00]} 3. d4 {[%clk 0:02:57]}  Nf6 {[%clk 0:03:00]} 4. d5 {[%clk 0:02:57]}  Nb8 {[%clk 0:03:01]} 5. Bd3 {[%clk 0:02:54]}  g6 {[%clk 0:03:01]} 6. c4 {[%clk 0:02:53]}  Bg7 {[%clk 0:03:01]} 7. Nc3 {[%clk 0:02:53]}  O-O {[%clk 0:03:02]} 8. Bg5 {[%clk 0:02:37]}  a5 {[%clk 0:03:02]} 9. Qd2 {[%clk 0:02:26]}  Na6 {[%clk 0:03:01]} 10. Bh6 {[%clk 0:02:18]}  Nc5 {[%clk 0:03:00]} 11. Bc2 {[%clk 0:02:14]}  e6 {[%clk 0:02:55]} 12. O-O-O {[%clk 0:02:04]}  exd5 {[%clk 0:02:51]} 13. exd5 {[%clk 0:02:00]}  Bg4 {[%clk 0:02:49]} 14. Bxg7 {[%clk 0:01:59]}  Kxg7 {[%clk 0:02:50]} 15. Qf4 {[%clk 0:01:54]}  Qd7 {[%clk 0:02:40]} 16. Rde1 {[%clk 0:01:50]}  Rae8 {[%clk 0:02:37]} 17. Nd4 {[%clk 0:01:43]}  Rxe1+ {[%clk 0:02:30]} 18. Rxe1 {[%clk 0:01:43]}  Re8 {[%clk 0:02:31]} 19. Re3 {[%clk 0:00:47]}  Rxe3 {[%clk 0:02:27]} 20. fxe3 {[%clk 0:00:46]}  Qe7 {[%clk 0:02:26]} 21. h3 {[%clk 0:00:44]}  Bd7 {[%clk 0:02:26]} 22. g4 {[%clk 0:00:41]}  h6 {[%clk 0:02:24]} 23. Kd2 {[%clk 0:00:38]}  c6 {[%clk 0:02:05]} 24. e4 {[%clk 0:00:33]}  cxd5 {[%clk 0:02:00]} 25. exd5 {[%clk 0:00:33]}  Nh7 {[%clk 0:01:54]} 26. Ndb5 {[%clk 0:00:26]}  Bxb5 {[%clk 0:01:51]} 27. Nxb5 {[%clk 0:00:27]}  Ng5 {[%clk 0:01:51]} 28. Qe3 {[%clk 0:00:03]}  Qf6 {[%clk 0:01:44]} 29. Qc3 {[%clk 0:00:03]}  Nge4+ {[%clk 0:01:44]} 30. Bxe4 {[%clk 0:00:00]}  Nxe4+ {[%clk 0:01:45]} 0-1


[Site "https://www.chess.com"]